bitfinex/quotes_SOLUSD_20220302
["timestamp","ask_amount","ask_price","bid_price","bid_amount"]
[1646259051017,24.3375,101.38,101.3,18.12]
[1646259051219,57.56657104,101.37,101.3,18.12]
[1646259051623,57.81657104,101.37,101.31,4.934]
[1646259051823,57.81657104,101.37,101.31,5.184]
[1646259052021,0.25,101.37,101.31,5.184]
[1646259052221,24.5875,101.38,101.31,5.184]
[1646259052422,24.5875,101.38,101.31,0.25]
[1646259052621,24.3375,101.38,101.31,0.25]
[1646259053120,23.9449,101.39,101.38,2.46596961]
[1646259053320,22.1187147,101.41,101.38,2.46596961]
[1646259053521,33.20566804,101.42,101.38,2.46596961]
[1646259054122,48.54386794,101.41,101.38,2.46596961]
[1646259054324,40.51898274,101.42,101.38,2.46596961]
[1646259054525,18.40026804,101.42,101.38,2.46596961]
[1646259054931,105.18508036,101.44,101.38,2.46596961]
[1646259055127,6.0,101.43,101.38,2.46596961]
[1646259055326,52.31334698,101.43,101.38,2.46596961]
[1646259055828,6.0,101.43,101.38,2.46596961]
[1646259056025,6.0,101.43,101.38,2.71596961]
[1646259056227,82.34776804,101.46,101.38,2.71596961]
[1646259056427,6.0,101.45,101.38,2.71596961]
[1646259056926,53.27960311,101.44,101.38,2.71596961]
[1646259057528,6.0,101.45,101.38,7.64596961]
[1646259057927,6.25,101.45,101.38,2.71596961]
[1646259058328,6.0,101.45,101.38,2.71596961]
[1646259058530,60.63543011,101.44,101.38,2.71596961]
[1646259058730,60.63543011,101.44,101.38,7.64596961]
[1646259058932,50.4765,101.47,101.38,167.30596961]
[1646259059132,27.6085,101.47,101.39,165.66]
[1646259059334,27.6085,101.47,101.4,179.3811]
[1646259059539,27.6085,101.47,101.41,105.73]
[1646259059734,27.6085,101.47,101.41,18.12]
[1646259060338,27.6085,101.47,101.41,80.42831841]
[1646259060837,27.6085,101.47,101.44,114.5177]
[1646259061037,27.6085,101.47,101.45,108.76219996]
[1646259061238,27.6085,101.47,101.45,69.21219996]
[1646259061437,11.0243,101.47,101.45,83.42614375]
[1646259061637,1.34638587,101.56,101.45,83.42614375]
[1646259061840,118.90608587,101.57,101.45,88.35114375]
[1646259062039,19.59676566,101.56,101.45,88.35114375]
[1646259062239,118.90608587,101.57,101.45,88.35114375]
[1646259062437,118.90608587,101.57,101.45,133.92384375]
[1646259062638,56.73027057,101.56,101.45,133.92384375]
[1646259063038,56.73027057,101.56,101.45,148.70974375]
[1646259063640,71.76517057,101.56,101.45,88.77974375]
[1646259063840,89.80193623,101.56,101.45,83.85474375]
[1646259064443,71.76517057,101.56,101.45,83.85474375]
[1646259064842,6.0,101.55,101.45,83.85474375]
[1646259065042,54.16237675,101.54,101.45,83.85474375]
[1646259065268,54.41237675,101.54,101.45,83.85474375]
[1646259065644,54.41237675,101.54,101.45,143.78474375]
[1646259067043,54.41237675,101.54,101.46,4.926]
[1646259067245,54.41237675,101.54,101.47,6.0]
[1646259067443,54.41237675,101.54,101.47,6.25]
[1646259068046,54.41237675,101.54,101.47,66.18]
[1646259068246,54.41237675,101.54,101.47,80.27455121]
[1646259068447,54.41237675,101.54,101.47,20.34455121]
[1646259068646,54.41237675,101.54,101.47,18.12]
[1646259070250,54.16237675,101.54,101.47,18.12]
[1646259071551,54.41237675,101.54,101.47,18.12]
[1646259072154,14.7849,101.56,101.47,18.12]
[1646259072155,102.7765,101.57,101.47,195.06023095]
[1646259072355,6.0,101.56,101.48,4.925]
[1646259072554,6.0,101.56,101.49,105.73]
[1646259072771,6.0,101.56,101.49,117.85]
[1646259073158,44.32390745,101.56,101.49,117.85]
[1646259073559,44.32390745,101.56,101.49,18.12]
[1646259074162,44.32390745,101.56,101.49,32.8997]
[1646259074977,44.57390745,101.56,101.49,32.8997]
[1646259076962,44.57390745,101.56,101.49,132.6297]
[1646259078063,44.57390745,101.56,101.49,192.5597]
[1646259078272,44.57390745,101.56,101.49,194.8623681]
[1646259078765,0.25,101.56,101.49,194.8623681]
[1646259078964,6.0,101.57,101.49,194.8623681]
[1646259079186,6.25,101.57,101.49,194.8623681]
[1646259080164,6.0,101.57,101.49,194.8623681]
[1646259083080,6.0,101.57,101.49,209.7470681]
[1646259083281,6.0,101.57,101.49,194.8623681]
[1646259083980,6.0,101.57,101.49,199.8623681]
[1646259085782,6.0,101.57,101.49,194.8623681]
[1646259086183,6.0,101.57,101.49,199.8623681]
[1646259086389,24.1272,101.61,101.49,215.90298886]
[1646259086617,22.788,101.62,101.52,0.33371651]
[1646259086786,22.788,101.62,101.53,173.51310664]
[1646259086985,24.7796,101.65,101.53,171.78]
[1646259087190,51.29652175,101.64,101.55,159.66]
[1646259087389,51.29652175,101.64,101.56,11.87]
[1646259087589,51.29652175,101.64,101.57,6.0]
[1646259087788,51.29652175,101.64,101.57,6.25]
[1646259088186,69.77478979,101.64,101.57,0.25]
[1646259088386,70.02478979,101.64,101.57,0.25]
[1646259088988,70.02478979,101.64,101.55,0.25]
[1646259089187,70.02478979,101.64,101.54,59.803]
[1646259089388,14.7747,101.62,101.54,12.12]
[1646259089589,0.25,101.62,101.54,12.12]
[1646259089805,0.25,101.62,101.54,0.25]
[1646259089993,19.57076566,101.62,101.5,217.7053]
[1646259090195,19.57076566,101.62,101.5,46.1753]
[1646259090492,0.24628389,101.61,101.5,58.0453]
[1646259090892,44.89418832,101.6,101.5,58.0453]
[1646259091593,45.14418832,101.6,101.5,58.2953]
[1646259091992,59.92178832,101.6,101.5,73.0709]
[1646259092391,59.92178832,101.6,101.5,172.8009]
[1646259092593,59.92178832,101.6,101.51,6.0]
[1646259092795,59.92178832,101.6,101.51,6.25]
[1646259093394,59.92178832,101.6,101.51,0.25]
[1646259093693,6.0,101.59,101.51,0.25]
[1646259093894,6.25,101.59,101.51,6.0]
[1646259094093,21.0289,101.59,101.51,6.25]
[1646259094293,21.0289,101.59,101.51,0.25]
[1646259095092,21.0289,101.59,101.5,160.9309]
[1646259096794,21.0289,101.59,101.5,61.2009]
[1646259096795,0.41022963,101.58,101.5,61.2009]
[1646259096995,21.0289,101.59,101.5,61.2009]
[1646259097395,15.07669138,101.58,101.5,60.9509]
[1646259097595,15.32669138,101.58,101.5,60.9509]
[1646259097797,15.32669138,101.58,101.5,46.1753]
[1646259098000,15.0306,101.58,101.5,46.1753]
[1646259098596,15.0306,101.58,101.5,46.4253]
[1646259098798,15.0306,101.58,101.5,0.25]
[1646259098997,54.93254838,101.56,101.48,15.0311]
[1646259099231,55.18254838,101.56,101.48,15.0311]
[1646259099497,55.0104412,101.56,101.48,15.0311]
[1646259100097,69.7937412,101.56,101.48,15.0311]
[1646259100502,0.15632497,101.55,101.48,15.0311]
[1646259100997,0.15632497,101.55,101.48,0.25]
[1646259101197,55.0104412,101.56,101.47,48.1068]
[1646259101599,6.0,101.55,101.47,48.1068]
[1646259101798,6.25,101.55,101.47,48.1068]
[1646259101998,21.0348,101.55,101.47,48.1068]
[1646259105602,15.0348,101.55,101.47,48.1068]
[1646259105803,15.0348,101.55,101.47,53.0318]
[1646259106204,15.0348,101.55,101.47,48.1068]
[1646259106402,0.25,101.55,101.47,162.6202]
[1646259106659,55.0104412,101.56,101.48,6.0]
[1646259106802,55.0104412,101.56,101.48,6.25]
[1646259107203,55.0104412,101.56,101.48,11.175]
[1646259108005,55.0104412,101.56,101.48,110.905]
[1646259108209,45.9169,101.58,101.48,170.835]
[1646259108406,45.9169,101.58,101.48,199.68461435]
[1646259109004,80.53538587,101.61,101.48,204.68461435]
[1646259109205,51.85562558,101.6,101.48,218.19601144]
[1646259109406,45.85562558,101.6,101.5,159.66]
[1646259109605,45.85562558,101.6,101.51,184.7330896]
[1646259109826,45.85562558,101.6,101.51,184.9830896]
[1646259110406,46.10562558,101.6,101.51,207.7763896]
[1646259111305,46.10562558,101.6,101.51,108.0463896]
[1646259111504,46.10562558,101.6,101.51,207.7763896]
[1646259111706,46.10562558,101.6,101.51,108.0463896]
[1646259113006,45.85562558,101.6,101.51,108.0463896]
[1646259113208,45.85562558,101.6,101.51,103.1233896]
[1646259113405,45.85562558,101.6,101.52,4.923]
[1646259113609,45.85562558,101.6,101.53,6.0]
[1646259113808,45.85562558,101.6,101.53,6.25]
[1646259114510,46.10562558,101.6,101.53,6.25]
[1646259114710,60.88222558,101.6,101.53,6.25]
[1646259115107,60.88222558,101.6,101.53,0.25]
[1646259115307,60.88222558,101.6,101.53,6.0]
[1646259115608,60.88222558,101.6,101.53,6.25]
[1646259116110,60.88222558,101.6,101.53,0.25]
[1646259116714,60.88222558,101.6,101.52,6.5]
[1646259117010,62.22861145,101.6,101.52,6.25]
[1646259118310,62.22861145,101.6,101.52,105.98]
[1646259118514,62.22861145,101.6,101.52,125.678]
[1646259118713,62.22861145,101.6,101.52,137.548]
[1646259118912,47.45201145,101.6,101.52,137.548]
[1646259119311,47.45201145,101.6,101.52,200.02704003]
[1646259119512,47.45201145,101.6,101.52,202.00561863]
[1646259119711,9.93134394,101.59,101.52,202.00561863]
[1646259120111,45.85562558,101.6,101.52,202.00561863]
[1646259120712,103.58378587,101.61,101.52,202.00561863]
[1646259120913,23.0484,101.61,101.52,202.00561863]
[1646259121113,23.0484,101.61,101.52,207.00561863]
[1646259121416,24.76888587,101.63,101.52,202.00561863]
[1646259121634,24.76888587,101.63,101.54,114.5008]
[1646259121835,57.79909366,101.62,101.55,6.0]
[1646259122034,57.79909366,101.62,101.55,6.25]
[1646259122235,47.87003217,101.62,101.55,6.25]
[1646259122437,48.12003217,101.62,101.55,6.25]
[1646259123135,48.12003217,101.62,101.55,21.0208]
[1646259124835,0.25,101.62,101.55,21.0208]
[1646259125036,25.01888587,101.63,101.55,21.0208]
[1646259125439,9.92707426,101.62,101.55,21.0208]
[1646259125637,10.17707426,101.62,101.55,21.0208]
[1646259126039,9.92707426,101.62,101.55,194.49230666]
[1646259126237,25.80798587,101.64,101.56,4.921]
[1646259126438,25.80798587,101.64,101.57,6.0]
[1646259126637,9.92329407,101.63,101.57,21.0183]
[1646259127438,10.17329407,101.63,101.57,21.0183]
[1646259127641,10.17329407,101.63,101.57,6.25]
[1646259127838,0.25,101.63,101.57,6.25]
[1646259128540,24.7116,101.64,101.57,6.25]
[1646259129138,9.91988917,101.63,101.57,6.25]
[1646259129338,10.16988917,101.63,101.57,6.25]
[1646259129939,0.25,101.63,101.57,6.25]
[1646259130639,24.7116,101.64,101.57,6.25]
[1646259131038,9.91791175,101.63,101.57,6.25]
[1646259131238,10.16791175,101.63,101.57,6.25]
[1646259131443,0.25,101.63,101.57,6.25]
[1646259132447,24.7116,101.64,101.57,6.25]
[1646259132840,9.91821461,101.63,101.57,47.28055065]
[1646259133039,10.16821461,101.63,101.57,47.28055065]
[1646259133639,0.25,101.63,101.57,47.28055065]
[1646259134139,26.05798587,101.64,101.57,47.28055065]
[1646259134341,24.7116,101.64,101.57,47.28055065]
[1646259134760,9.91657282,101.63,101.57,47.28055065]
[1646259134941,10.16657282,101.63,101.57,47.28055065]
[1646259135643,0.25,101.63,101.57,47.28055065]
[1646259136243,26.05798587,101.64,101.57,6.25]
[1646259136844,9.91601299,101.63,101.57,6.25]
[1646259137046,10.16601299,101.63,101.57,6.25]
[1646259137561,0.25,101.63,101.57,6.25]
[1646259138243,26.05798587,101.64,101.57,6.25]
[1646259138847,9.91535338,101.63,101.57,6.25]
[1646259139144,10.16535338,101.63,101.57,6.25]
[1646259139678,0.25,101.63,101.57,6.25]
[1646259140047,26.05798587,101.64,101.57,6.25]
[1646259140452,9.91597731,101.63,101.57,6.25]
[1646259140646,10.16597731,101.63,101.57,6.25]
[1646259141249,0.25,101.63,101.57,6.25]
[1646259141447,1.59638587,101.63,101.57,6.25]
[1646259142350,0.25,101.63,101.57,6.25]
[1646259142548,26.05798587,101.64,101.57,6.25]
[1646259142949,9.91507533,101.63,101.57,6.25]
[1646259143147,10.16507533,101.63,101.57,6.25]
[1646259143747,0.25,101.63,101.57,6.25]
[1646259143993,1.59638587,101.63,101.57,6.25]
[1646259146050,1.59638587,101.63,101.55,33.78578153]
[1646259146250,0.5194904,101.62,101.52,14.7724]
[1646259146449,20.39275009,101.62,101.5,5.0]
[1646259146649,79.91099541,101.61,101.5,5.0]
[1646259146849,0.5194904,101.6,101.5,5.0]
[1646259147052,0.5194904,101.6,101.51,22.6712]
[1646259147351,105.5346176,101.61,101.51,22.6712]
[1646259147551,14.7781,101.59,101.51,22.9212]
[1646259147753,0.25,101.59,101.52,6.0]
[1646259147952,0.25,101.59,101.52,0.25]
[1646259148451,0.25,101.59,101.52,6.25]
[1646259148854,105.5346176,101.61,101.52,0.25]
[1646259149054,14.7767,101.6,101.52,6.0]
[1646259149253,15.0267,101.6,101.52,6.25]
[1646259149855,16.37308587,101.6,101.52,6.25]
[1646259150056,6.0,101.59,101.52,6.25]
[1646259150258,6.25,101.59,101.52,6.25]
[1646259152659,6.0,101.59,101.52,167.97961074]
[1646259152961,79.91099541,101.61,101.52,167.97961074]
[1646259153159,6.0,101.6,101.52,167.97961074]
[1646259153358,6.25,101.6,101.52,167.97961074]
[1646259154058,6.25,101.6,101.52,204.1440784]
[1646259154760,24.9562,101.61,101.52,204.1440784]
[1646259154960,25.2062,101.61,101.52,204.1440784]
[1646259155162,24.9562,101.61,101.52,204.1440784]
[1646259155384,1.34638587,101.63,101.52,204.1440784]
[1646259155564,1.34638587,101.63,101.54,159.66]
[1646259155764,64.77648587,101.64,101.55,6.0]
[1646259155962,108.94852138,101.64,101.55,29.9859]
[1646259156362,94.17682138,101.64,101.55,29.9859]
[1646259156564,94.42682138,101.64,101.55,29.9859]
[1646259157163,93.08043551,101.64,101.55,29.9859]
[1646259157764,48.9084,101.64,101.55,29.9859]
[1646259158066,48.9084,101.64,101.55,44.7553]
[1646259158665,48.9084,101.64,101.55,204.4153]
[1646259158865,48.6584,101.64,101.55,206.59858061]
[1646259159065,48.6584,101.64,101.55,211.59858061]
[1646259161469,48.6584,101.64,101.56,4.921]
[1646259161670,48.6584,101.64,101.57,6.0]
[1646259161869,48.6584,101.64,101.57,6.25]
[1646259162071,48.9084,101.64,101.57,6.25]
[1646259170805,48.9084,101.64,101.57,6.0]
[1646259172110,48.9084,101.64,101.57,6.25]
[1646259172508,14.7693,101.65,101.57,6.25]
[1646259172911,14.7693,101.65,101.57,30.4237]
[1646259173319,14.7693,101.65,101.57,24.1737]
[1646259173609,9.93087004,101.64,101.56,4.921]
[1646259173808,10.11172564,101.64,101.55,28.9143]
[1646259174013,10.36172564,101.64,101.55,23.9933]
[1646259174208,22.60716212,101.64,101.55,23.9933]
[1646259174409,47.38318163,101.62,101.55,23.9933]
[1646259174614,47.63318163,101.62,101.55,24.2433]
[1646259175011,6.0,101.61,101.55,24.2433]
[1646259177813,62.40698163,101.62,101.55,24.2433]
[1646259181215,0.25928858,101.61,101.55,24.2433]
[1646259181417,62.40698163,101.62,101.55,24.2433]
[1646259186121,62.40698163,101.62,101.55,0.25]
[1646259186322,0.1497693,101.61,101.54,5.171]
[1646259186522,14.7753,101.61,101.54,0.25]
[1646259186721,15.0253,101.61,101.53,4.922]
[1646259186920,0.38926173,101.61,101.53,4.922]
[1646259187145,6.38926173,101.61,101.53,4.922]
[1646259187520,6.25,101.61,101.53,4.922]
[1646259188121,14.7768,101.6,101.53,5.172]
[1646259188322,15.0268,101.6,101.53,5.172]
[1646259189825,14.7783,101.59,101.53,5.172]
[1646259190023,46.52776904,101.58,101.53,4.922]
[1646259190226,46.77776904,101.58,101.53,4.922]
[1646259190430,46.77776904,101.58,101.52,23.0397]
[1646259190827,46.77776904,101.58,101.5,24.6649]
[1646259191025,14.7825,101.56,101.49,22.7719]
[1646259191225,15.0325,101.56,101.48,5.0]
[1646259191440,0.42622898,101.56,101.48,5.0]
[1646259191627,6.284,101.56,101.48,5.0]
[1646259191826,0.17622898,101.55,101.48,5.0]
[1646259192024,6.46022898,101.56,101.46,57.47627925]
[1646259192226,6.284,101.56,101.46,57.47627925]
[1646259192426,8.13787191,101.56,101.46,57.72627925]
[1646259192627,8.13787191,101.56,101.46,57.47627925]
[1646259192827,0.18036181,101.55,101.46,47.3241]
[1646259193129,56.86209564,101.53,101.46,49.87314003]
[1646259193324,57.11209564,101.53,101.46,49.87314003]
[1646259194732,57.11209564,101.53,101.47,6.0]
[1646259194930,0.25,101.53,101.47,6.25]
[1646259195130,15.0354,101.54,101.47,6.25]
[1646259196029,52.54961027,101.53,101.47,6.25]
[1646259196231,52.79961027,101.53,101.47,6.25]
[1646259201256,52.54961027,101.53,101.47,6.25]
[1646259201459,52.54961027,101.53,101.48,2.54904003]
[1646259201658,52.54961027,101.53,101.49,6.0]
[1646259201859,52.54961027,101.53,101.49,6.25]
[1646259202059,52.54961027,101.53,101.49,8.79904003]
[1646259202258,24.7798,101.55,101.49,8.79904003]
[1646259202458,6.0,101.54,101.49,8.79904003]
[1646259203162,58.97506378,101.54,101.49,8.79904003]
[1646259203562,59.22506378,101.54,101.49,2.79904003]
[1646259203761,59.22506378,101.54,101.49,0.25]
[1646259203961,59.22506378,101.54,101.46,50.12314003]
[1646259204762,99.73,101.52,101.44,5.0]
[1646259204964,0.42297768,101.51,101.4,53.4031229]
[1646259205163,58.71585428,101.5,101.4,53.4031229]
[1646259205362,0.42297768,101.49,101.4,25.2457229]
[1646259206063,14.7953,101.48,101.4,25.2457229]
[1646259206364,0.25,101.48,101.4,23.1806]
[1646259206963,6.0,101.49,101.4,23.4306]
[1646259207163,20.7936,101.49,101.4,25.68123682]
[1646259207968,14.7936,101.49,101.4,25.68123682]
[1646259208169,14.7936,101.49,101.41,4.928]
[1646259208367,14.7936,101.49,101.41,5.178]
[1646259208565,15.0436,101.49,101.41,0.25]
[1646259208764,14.7936,101.49,101.41,0.25]
[1646259208965,14.7936,101.49,101.42,4.928]
[1646259209167,58.71585428,101.5,101.42,5.178]
[1646259209465,6.0,101.49,101.42,0.25]
[1646259210066,6.0,101.49,101.41,4.928]
[1646259210067,6.0,101.49,101.43,4.928]
[1646259210265,6.0,101.49,101.43,0.25]
[1646259211067,39.594,101.51,101.43,0.25]
[1646259211267,39.844,101.51,101.43,0.25]
[1646259211468,6.0,101.5,101.42,41.59794802]
[1646259211667,6.25,101.5,101.42,26.80864802]
[1646259211870,21.0413,101.5,101.42,24.4808]
[1646259212070,53.09989144,101.49,101.42,24.4808]
[1646259212973,53.09989144,101.49,101.42,26.48767764]
[1646259213174,53.09989144,101.49,101.42,26.97346492]
[1646259213571,53.09989144,101.49,101.42,31.90146492]
[1646259214471,53.09989144,101.49,101.42,29.4088]
[1646259217072,53.09989144,101.49,101.42,24.4808]
[1646259219172,6.25,101.5,101.42,26.92058868]
[1646259219374,6.25,101.5,101.42,31.84858868]
[1646259219674,6.25,101.5,101.43,6.0]
[1646259219879,6.25,101.5,101.43,6.25]
[1646259220074,54.25305641,101.5,101.43,6.25]
[1646259222094,6.25,101.5,101.43,6.25]
[1646259222381,24.8032,101.51,101.43,23.26395495]
[1646259222583,23.0828,101.53,101.44,4.926]
[1646259222778,37.8705,101.53,101.44,31.40367155]
[1646259222999,37.8705,101.53,101.44,26.47767155]
[1646259223200,51.52852773,101.52,101.44,26.47767155]
[1646259224001,51.52852773,101.52,101.44,41.26367155]
[1646259224603,51.52852773,101.52,101.45,6.0]
[1646259224804,37.8705,101.53,101.45,6.25]
[1646259225002,38.1205,101.53,101.45,11.176]
[1646259225802,93.34981255,101.53,101.45,11.176]
[1646259228505,93.34981255,101.53,101.45,6.25]
[1646259229105,93.34981255,101.53,101.45,0.25]
[1646259229307,93.34981255,101.53,101.44,41.26367155]
[1646259230705,0.20433092,101.52,101.44,41.26367155]
[1646259230907,93.34981255,101.53,101.44,41.26367155]
[1646259232205,93.34981255,101.53,101.45,4.926]
[1646259232406,93.34981255,101.53,101.45,5.176]
[1646259233607,6.0,101.52,101.45,5.176]
[1646259233808,0.25,101.52,101.45,5.176]
[1646259235009,93.34981255,101.53,101.45,5.176]
[1646259235613,0.13825755,101.52,101.45,5.176]
[1646259235810,6.13825755,101.52,101.45,5.176]
[1646259236011,0.25,101.52,101.45,5.176]
[1646259236212,21.0385,101.52,101.45,5.176]
[1646259236415,15.0385,101.52,101.45,5.176]
[1646259238010,6.0,101.51,101.45,5.176]
[1646259238215,15.0385,101.52,101.45,5.176]
[1646259240313,0.25,101.52,101.45,5.176]
[1646259240512,78.56211255,101.53,101.45,5.176]
[1646259242017,78.56211255,101.53,101.45,19.9614]
[1646259242415,93.34911255,101.53,101.45,19.9614]
[1646259242624,93.34911255,101.53,101.45,5.176]
[1646259244619,20.7883,101.52,101.45,5.176]
[1646259244816,15.0383,101.52,101.45,5.176]
[1646259252425,0.20252014,101.51,101.45,5.176]
[1646259252630,15.0383,101.52,101.45,5.176]
[1646259256655,0.25,101.52,101.45,5.176]
[1646259256829,78.56211255,101.53,101.45,5.176]
[1646259257428,78.56211255,101.53,101.45,19.9618]
[1646259258044,23.3328,101.53,101.45,19.9618]
[1646259258230,14.7862,101.54,101.45,19.9618]
[1646259258231,14.7862,101.54,101.45,79.8918]
[1646259258431,6.0,101.53,101.46,0.13261308]
[1646259258631,6.0,101.53,101.46,6.13261308]
[1646259258830,6.0,101.53,101.47,14.7822]
[1646259259032,6.0,101.54,101.47,15.0322]
[1646259259632,69.49844319,101.55,101.47,15.0322]
[1646259260138,69.74844319,101.55,101.47,15.0322]
[1646259260836,69.49844319,101.55,101.47,15.0322]
[1646259262133,69.74844319,101.55,101.47,15.0322]
[1646259263734,69.74844319,101.55,101.47,14.7822]
[1646259263935,69.74844319,101.55,101.47,19.7072]
[1646259264342,84.53254319,101.55,101.47,19.7072]
[1646259265635,84.53254319,101.55,101.47,19.9572]
[1646259267337,14.7854,101.54,101.47,0.25]
[1646259267545,15.0354,101.54,101.46,24.028]
[1646259270039,6.0,101.53,101.46,24.028]
[1646259270240,6.25,101.53,101.46,24.028]
[1646259270540,30.5913,101.53,101.46,24.028]
[1646259271971,30.5913,101.53,101.46,38.8127]
[1646259276272,45.3782,101.53,101.46,24.028]
[1646259276472,45.3782,101.53,101.46,23.778]
[1646259277674,45.3782,101.53,101.46,24.028]
[1646259279178,45.3782,101.53,101.46,0.25]
[1646259279376,45.3782,101.53,101.46,6.0]
[1646259279580,45.3782,101.53,101.46,6.25]
[1646259284585,30.5913,101.53,101.46,6.25]
[1646259287982,45.3782,101.53,101.46,6.25]
[1646259289584,6.0,101.52,101.46,6.25]
[1646259289788,47.33449167,101.51,101.46,6.25]
[1646259290386,47.33449167,101.51,101.46,5.75]
[1646259290887,39.3782,101.53,101.46,5.75]
[1646259291087,24.3413,101.53,101.46,20.5346]
[1646259291289,39.8239,101.57,101.46,22.5013423]
[1646259291489,39.8239,101.57,101.47,24.33721153]
[1646259291689,39.8239,101.57,101.47,24.58721153]
[1646259291890,53.11415178,101.56,101.47,24.462]
[1646259292295,39.8239,101.57,101.47,24.462]
[1646259292296,24.6755,101.57,101.47,26.46198706]
[1646259292488,24.6755,101.57,101.48,6.0]
[1646259292788,39.4575,101.57,101.49,23.6989]
[1646259292991,39.4575,101.57,101.49,23.9489]
[1646259293188,24.6755,101.57,101.49,23.9489]
[1646259293390,22.21414331,101.57,101.49,26.49794003]
[1646259293788,22.21414331,101.57,101.49,23.9489]
[1646259294589,22.46414331,101.57,101.49,23.9489]
[1646259296592,22.21414331,101.57,101.49,26.36666328]
[1646259297089,22.21414331,101.57,101.5,20.7778]
[1646259297300,22.21414331,101.57,101.5,21.0278]
[1646259299693,22.46414331,101.57,101.5,21.0278]
[1646259299897,22.46414331,101.57,101.5,15.0278]
[1646259311101,22.46414331,101.57,101.5,0.25]
[1646259311401,22.46414331,101.57,101.49,23.9489]
[1646259312407,0.15187462,101.56,101.49,23.9489]
[1646259313023,22.46414331,101.57,101.49,23.9489]
[1646259315926,124.04302324,101.57,101.49,23.6989]
[1646259316123,24.69539801,101.56,101.47,29.0897]
[1646259316322,124.67539801,101.56,101.47,24.0897]
[1646259316523,47.64935474,101.56,101.47,24.0897]
[1646259316722,50.49706839,101.54,101.47,24.0897]
[1646259316923,50.30412031,101.54,101.47,24.0897]
[1646259317122,65.08962031,101.54,101.47,24.0897]
[1646259318123,20.7869,101.53,101.47,24.3397]
[1646259318323,21.0369,101.53,101.47,24.3397]
[1646259319025,21.0369,101.53,101.47,0.25]
[1646259319222,21.0369,101.53,101.45,28.7487]
[1646259319223,14.7884,101.52,101.45,28.9987]
[1646259319422,14.7884,101.52,101.45,28.7487]
[1646259319423,15.0384,101.52,101.45,28.7487]
[1646259320833,15.0384,101.52,101.45,28.9987]
[1646259322134,6.0,101.51,101.45,28.9987]
[1646259322335,48.66519757,101.5,101.45,5.175]
[1646259322836,48.16519757,101.5,101.45,4.925]
[1646259323035,48.16519757,101.5,101.43,24.8283]
[1646259323838,63.20639757,101.5,101.43,24.8283]
[1646259324638,54.08735454,101.48,101.43,24.8283]
[1646259325038,54.08735454,101.48,101.43,25.0783]
[1646259325442,60.63035454,101.48,101.43,25.0783]
[1646259327343,60.88035454,101.48,101.43,25.0783]
[1646259328444,60.88035454,101.48,101.43,0.25]
[1646259328647,0.14854258,101.47,101.42,24.6739]
[1646259328945,75.67455454,101.48,101.42,24.6739]
[1646259329947,6.0,101.47,101.42,0.25]
[1646259330146,6.0,101.47,101.39,30.3696]
[1646259330147,51.22194443,101.46,101.39,30.3696]
[1646259330349,51.22194443,101.46,101.39,30.6196]
[1646259331555,66.26924443,101.46,101.39,30.3696]
[1646259331950,90.86144443,101.46,101.39,30.3696]
[1646259332149,60.13816352,101.44,101.39,6.0]
[1646259332548,60.38816352,101.44,101.39,6.0]
[1646259333053,174.91816352,101.44,101.39,6.0]
[1646259333253,6.0,101.43,101.34,10.24271365]
[1646259333450,6.0,101.43,101.31,5.12210386]
[1646259333451,99.73,101.41,101.31,5.12210386]
[1646259333652,99.73,101.39,101.29,5.0]
[1646259333853,158.3378124,101.38,101.29,5.0]
[1646259334052,14.8146,101.34,101.26,24.86182659]
[1646259334252,54.98029568,101.33,101.26,24.86182659]
[1646259334454,156.80917561,101.33,101.23,5.0]